fUST/lending_fUST_20250615
["ID","MTS","AMOUNT","RATE_DAILY","PERIOD"]
[365805314,1749925847027,-460.0,0.00023287,4]
[365805315,1749925847037,-460.0,0.00023287,4]
[365805316,1749925847046,-460.0,0.00023287,4]
[365805317,1749925847057,-151.0,0.00023287,7]
[365805318,1749925847068,-1253.82,0.00023287,4]
[365805319,1749925847078,-1032.07,0.00023287,4]
[365805320,1749925847090,-460.0,0.00023287,4]
[365805321,1749925847099,-624.19,0.00023287,4]
[365805322,1749925847109,-1735.45,0.00023287,4]
[365805323,1749925847118,-1027.95,0.00023287,4]
[365805324,1749925847129,-151.0,0.00023287,7]
[365805325,1749925847141,-460.0,0.00023287,4]
[365805326,1749925847151,-476.09,0.00023287,4]
[365805327,1749925847160,-898.8,0.00023287,4]
[365805328,1749925847170,-513.72,0.00023287,4]
[365805329,1749925847180,-2698.88,0.00023287,4]
[365805330,1749925847189,-1213.9,0.00023287,4]
[365805331,1749925847198,-598.78,0.00023287,4]
[365805332,1749925847209,-2304.08,0.00023287,4]
[365805333,1749925847218,-624.98,0.00023287,2]
[365805334,1749925847227,-460.0,0.00023287,4]
[365805335,1749925847237,-1322.52,0.00023287,4]
[365805336,1749925847246,-596.23061892,0.00023287,4]
[365805337,1749925847255,-460.0,0.00023287,4]
[365805338,1749925847266,-2578.55,0.00023287,4]
[365805339,1749925847275,-151.0,0.00023287,7]
[365805340,1749925847284,-2517.47,0.00023287,4]
[365805341,1749925847294,-179.306687,0.00023287,7]
[365805342,1749925847304,-817.33,0.00023287,4]
[365805343,1749925847313,-1508.36,0.00023287,4]
[365805344,1749925847323,-460.0,0.00023287,4]
[365805345,1749925847332,-460.0,0.00023287,4]
[365805346,1749925847342,-501.12,0.00023287,4]
[365805347,1749925847351,-1075.14,0.00023287,4]
[365805348,1749925847362,-476.62,0.00023287,4]
[365805349,1749925847371,-460.0,0.00023287,4]
[365805350,1749925847382,-460.0,0.00023287,4]
[365805351,1749925847391,-1464.55,0.00023287,4]
[365805352,1749925847401,-460.0,0.00023287,4]
[365805353,1749925847411,-1382.48,0.00023287,4]
[365805354,1749925847420,-574.9,0.00023287,4]
[365805355,1749925847429,-1711.35,0.00023287,4]
[365805356,1749925847439,-2058.3,0.00023287,4]
[365805357,1749925847449,-460.0,0.00023287,4]
[365805358,1749925847459,-2786.23,0.00023287,4]
[365805359,1749925847469,-2477.9,0.000233,7]
[365805360,1749925847478,-213.28201367,0.000233,7]
[365805361,1749925847487,-151.0,0.000233,7]
[365805362,1749925847497,-600.0,0.00023346,2]
[365805363,1749925847507,-119719.01283049,0.0002335,2]
[365805364,1749925847517,-154.894672,0.0002335,7]
[365805365,1749925847526,-151.0,0.0002335,7]
[365805366,1749925847536,-167.735072,0.0002335,7]
[365805367,1749925847545,-167.735072,0.0002335,7]
[365805368,1749925847554,-721.94390946,0.00023366,2]
[365805369,1749925847564,-256.720747,0.00023374,7]
[365805370,1749925847573,-151.0,0.00023374,7]
[365805371,1749925847583,-151.0,0.00023374,7]
[365805372,1749925847592,-177.425803,0.00023374,7]
[365805373,1749925847602,-177.425803,0.00023374,7]
[365805374,1749925847612,-964.9368892,0.00023383,9]
[365805375,1749925847622,-168.0,0.00023396,2]
[365805376,1749925847633,-5000.0,0.00023416,2]
[365805377,1749925847642,-178.205831,0.00023422,7]
[365805378,1749925847654,-404.51743958,0.00023423,2]
[365805379,1749925847664,-800.0,0.00023448,2]
[365805380,1749925847673,-800.0,0.00023487,2]
[365805381,1749925847683,-7361.99294644,0.00023489,2]
[365805382,1749925847692,-716.19,0.000235,7]
[365805383,1749925847702,-1000.0,0.00023521,2]
[365805384,1749925847711,-1200.0,0.00023521,2]
[365805385,1749925847721,-392.67113613,0.00023521,2]
[365805386,1749925847731,-1000.0,0.00023521,2]
[365805387,1749925847740,-500.0,0.00023521,2]
[365805388,1749925847749,-1000.0,0.00023521,2]
[365805389,1749925847759,-816.9201482,0.00023521,2]
[365805390,1749925847769,-500.0,0.00023521,2]
[365805391,1749925847778,-964.9368892,0.00023521,9]
[365805392,1749925847788,-5188.43487911,0.00023542,2]
[365805393,1749925847798,-317.0,0.00023555,3]
[365805394,1749925847807,-1000.0,0.00023558,2]
[365805395,1749925847817,-186.68,0.0002356,2]
[365805396,1749925847827,-153.561152,0.00023561,7]
[365805397,1749925847837,-167.735072,0.00023561,7]
[365805398,1749925847846,-167.735072,0.00023561,7]
[365805399,1749925847856,-151.0,0.00023561,7]
[365805400,1749925847866,-460.0,0.00023561,4]
[365805401,1749925847877,-151.0,0.00023561,7]
[365805402,1749925847887,-1241.53,0.00023561,4]
[365805403,1749925847896,-151.0,0.00023561,7]
[365805404,1749925847906,-460.0,0.00023561,4]
[365805405,1749925847916,-460.0,0.00023561,4]
[365805406,1749925847925,-460.0,0.00023561,4]
[365805407,1749925847934,-460.0,0.00023561,4]
[365805408,1749925847945,-862.44,0.00023561,4]
[365805409,1749925847954,-956.9,0.00023561,4]
[365805410,1749925847963,-460.0,0.00023561,4]
[365805411,1749925847973,-460.0,0.00023561,4]
[365805412,1749925847982,-460.0,0.00023561,4]
[365805413,1749925847992,-151.0,0.00023561,7]
[365805414,1749925848002,-151.0,0.00023561,7]
[365805415,1749925848011,-1253.82,0.00023561,4]
[365805416,1749925848021,-1032.07,0.00023561,4]
[365805417,1749925848030,-624.19,0.00023561,4]
[365805418,1749925848040,-1735.45,0.00023561,4]
[365805419,1749925848049,-1027.95,0.00023561,4]
[365805420,1749925848058,-151.0,0.00023561,7]
[365805421,1749925848068,-460.0,0.00023561,4]
[365805422,1749925848077,-476.09,0.00023561,4]
[365805423,1749925848087,-898.8,0.00023561,4]
[365805424,1749925848097,-513.72,0.00023561,4]
[365805425,1749925848107,-2698.88,0.00023561,4]
[365805426,1749925848117,-1213.9,0.00023561,4]
[365805427,1749925848128,-598.78,0.00023561,4]
[365805428,1749925848140,-2304.08,0.00023561,4]
[365805429,1749925848150,-624.98,0.00023561,2]
[365805430,1749925848159,-460.0,0.00023561,4]
[365805431,1749925848168,-1322.52,0.00023561,4]
[365805432,1749925848178,-460.0,0.00023561,4]
[365805433,1749925848187,-2578.55,0.00023561,4]
[365805434,1749925848196,-151.0,0.00023561,7]
[365805435,1749925848206,-2517.47,0.00023561,4]
[365805436,1749925848216,-595.21226985,0.00023561,4]
[365805437,1749925848323,-222.11773015,0.00023561,4]
[365805438,1749925848333,-522.98546168,0.00023561,4]
[365805439,1749925848483,-460.0,0.00021917,4]
[365805440,1749925848493,-460.0,0.00021917,4]
[365805441,1749925848503,-460.0,0.00022191,4]
[365805442,1749925848513,-310.0,0.00022191,4]
[365805443,1749925848523,-531.65760662,0.00022228,2]
[365805444,1749925848995,-456.14835882,0.00021917,4]
[365805446,1749925899853,276.309049,0.00013699,2]
[365805454,1749926554574,5913.09077843,0.00016,2]
[365805458,1749926730134,-204.08620714,0.00020113,2]
[365805459,1749926730159,-34.51019054,0.00020187,2]
[365805460,1749926827089,-238.96585357,0.000189,2]
[365805461,1749926827110,-241.79885846,0.00020187,2]
[365805462,1749926827130,-176.231189,0.00020481,2]
[365805463,1749926827151,-1200.0,0.00020733,2]
[365805464,1749926827170,-300.0,0.00020734,2]
[365805465,1749926827190,-300.0,0.00020734,2]
[365805466,1749926827210,-300.0,0.00020734,2]
[365805467,1749926827230,-300.0,0.00020734,2]
[365805468,1749926827251,-8446.87067331,0.00020735,2]
[365805469,1749926837131,-11290.01918565,0.00020735,2]
[365805470,1749926843096,-3226.12564243,0.00020735,2]
[365805496,1749927031827,-1936.98449861,0.00020735,2]
[365805497,1749927031837,-163.4511027,0.00020964,2]
[365805498,1749927031848,-500.0,0.00021154,2]
[365805499,1749927031857,-186.68,0.00021243,2]
[365805500,1749927031867,-168.0,0.00021411,2]
[365805501,1749927031876,-169.564,0.00021675,2]
[365805503,1749927031886,-168.0,0.00021675,2]
[365805504,1749927031896,-1326.76,0.00021691,2]
[365805505,1749927031906,-1311.23338914,0.00021817,2]
[365805506,1749927031915,-934.63574032,0.000219,6]
[365805507,1749927031924,-730.4,0.00021907,3]
[365805508,1749927031934,-1200.0,0.00021915,2]
[365805509,1749927031943,-500.0,0.00021916,2]
[365805510,1749927031953,-173.8921526,0.00021916,2]
[365805511,1749927031963,-500.0,0.00021916,2]
[365805512,1749927031973,-407.72008457,0.00021917,4]
[365805513,1749927031982,-460.0,0.00021917,4]
[365805514,1749927031992,-460.0,0.00021917,2]
[365805515,1749927032001,-460.0,0.00021917,4]
[365805516,1749927032010,-403.55744076,0.00021917,4]
[365805517,1749927032020,-364.75865071,0.00021917,4]
[365805518,1749927032030,-402.56191319,0.00021917,4]
[365805519,1749927032040,-420.0,0.00021917,4]
[365805520,1749927032049,-460.0,0.00021917,4]
[365805521,1749927032059,-420.0,0.00021917,4]
[365805522,1749927032069,-410.48647356,0.00021917,4]
[365805523,1749927032078,-460.0,0.00021917,4]
[365805524,1749927032088,-460.0,0.00021917,4]
[365805525,1749927032097,-460.0,0.00021917,4]
[365805526,1749927032107,-420.0,0.00021917,4]
[365805527,1749927032117,-413.46052354,0.00021917,4]
[365805528,1749927032126,-460.0,0.00021917,4]
[365805529,1749927032136,-405.91417754,0.00021917,4]
[365805530,1749927032147,-460.0,0.00021917,4]
[365805531,1749927032157,-460.0,0.00021917,4]
[365805532,1749927032167,-460.0,0.00021917,4]
[365805533,1749927032176,-460.0,0.00021917,4]
[365805534,1749927032186,-460.0,0.00021917,4]
[365805535,1749927032195,-460.0,0.00021917,4]
[365805536,1749927032205,-460.0,0.00021917,4]
[365805537,1749927032215,-460.0,0.00021917,4]
[365805538,1749927032224,-410.0,0.00021917,4]
[365805539,1749927032233,-440.0,0.00021917,4]
[365805540,1749927032243,-430.0,0.00021917,4]
[365805541,1749927032253,-400.0,0.00021917,4]
[365805542,1749927032263,-460.0,0.00021917,4]
[365805543,1749927032274,-460.0,0.00021917,4]
[365805544,1749927032283,-590.15354752,0.00021917,4]
[365805545,1749927032294,-460.0,0.00021917,4]
[365805546,1749927032304,-410.0,0.00021917,4]
[365805547,1749927032313,-500.0,0.00021917,4]
[365805548,1749927032323,-157.29330944,0.00021917,4]
[365805549,1749927032332,-420.0,0.00021917,4]
[365805550,1749927032342,-430.0,0.00021917,4]
[365805551,1749927032352,-460.0,0.00021917,4]
[365805552,1749927032361,-477.7590087,0.00021917,4]
[365805553,1749927032371,-460.0,0.00021917,4]
[365805554,1749927032381,-458.34631231,0.00021917,4]
[365805555,1749927032391,-430.0,0.00021917,4]
[365805556,1749927032401,-460.0,0.00021917,4]
[365805557,1749927032410,-460.0,0.00021917,4]
[365805558,1749927032421,-430.0,0.00021917,4]
[365805559,1749927032430,-430.0,0.00021917,4]
[365805560,1749927032439,-527.0,0.00021917,4]
[365805561,1749927032449,-350.0,0.00021917,4]
[365805562,1749927032458,-430.00320769,0.00021917,4]
[365805563,1749927032467,-460.0,0.00021917,4]
[365805564,1749927032477,-334.28555124,0.00021917,4]
[365805565,1749927032487,-460.0,0.00021917,4]
[365805566,1749927032497,-390.0,0.00021917,4]
[365805567,1749927032507,-460.0,0.00021917,4]
[365805568,1749927032516,-525.85231248,0.00021917,4]
[365805569,1749927032526,-400.0,0.00021917,4]
[365805570,1749927032535,-460.0,0.00021917,4]
[365805571,1749927032544,-460.0,0.00021917,4]
[365805572,1749927032554,-460.0,0.00021917,4]
[365805573,1749927032564,-460.0,0.00021917,4]
[365805574,1749927032577,-265.52867336,0.00021917,4]
[365805575,1749927032587,-460.0,0.00021917,4]
[365805576,1749927032597,-460.0,0.00021917,4]
[365805577,1749927032607,-430.0,0.00021917,4]
[365805578,1749927032618,-460.0,0.00021917,4]
[365805579,1749927032630,-460.0,0.00021917,4]
[365805580,1749927032640,-460.0,0.00021917,4]
[365805581,1749927032652,-282.25293673,0.00021917,4]
[365805582,1749927032661,-460.0,0.00021917,4]
[365805583,1749927032671,-460.0,0.00021917,4]
[365805584,1749927032683,-571.63206686,0.00021917,4]
[365805585,1749927032693,-460.0,0.00021917,4]
[365805586,1749927032703,-460.0,0.00021917,4]
[365805587,1749927032713,-460.0,0.00021917,4]
[365805588,1749927032722,-460.0,0.00021917,4]
[365805589,1749927032731,-578.93426575,0.00021917,4]
[365805590,1749927032740,-249.04152307,0.00021917,4]
[365805591,1749927032751,-430.0,0.00021917,4]
[365805592,1749927032760,-430.0,0.00021917,4]
[365805593,1749927032770,-430.0,0.00021917,4]
[365805594,1749927032780,-460.0,0.00021917,4]
[365805595,1749927032789,-460.0,0.00021917,4]
[365805596,1749927032798,-460.0,0.00021917,4]
[365805597,1749927032808,-500.0,0.00021917,4]
[365805598,1749927032818,-460.0,0.00021917,4]
[365805599,1749927032828,-460.0,0.00021917,4]
[365805600,1749927032837,-460.0,0.00021917,4]
[365805601,1749927032847,-430.0,0.00021917,4]
[365805602,1749927032856,-460.0,0.00021917,4]
[365805603,1749927032865,-460.0,0.00021917,4]
[365805604,1749927032875,-270.0,0.00021917,4]
[365805605,1749927032885,-460.0,0.00021917,4]
[365805606,1749927032895,-460.0,0.00021917,4]
[365805607,1749927032904,-460.0,0.00021917,4]
[365805608,1749927032913,-345.40643325,0.00021917,4]
[365805609,1749927032923,-470.0,0.00021917,4]
[365805610,1749927032933,-460.0,0.00021917,4]
[365805611,1749927032942,-460.0,0.00021917,4]
[365805612,1749927032952,-430.0,0.00021917,4]
[365805613,1749927032962,-460.0,0.00021917,4]
[365805614,1749927032972,-460.0,0.00021917,4]
[365805615,1749927032981,-520.93746372,0.00021917,4]
[365805616,1749927032991,-340.0,0.00021917,4]
[365805617,1749927033000,-369.73863018,0.00021917,4]
[365805618,1749927033011,-430.0,0.00021917,4]
[365805619,1749927033022,-460.0,0.00021917,4]
[365805620,1749927033032,-460.0,0.00021917,4]
[365805621,1749927033043,-400.0,0.00021917,4]
[365805622,1749927033054,-400.0,0.00021917,4]
[365805623,1749927033064,-460.0,0.00021917,4]
[365805624,1749927033074,-400.0,0.00021917,4]
[365805625,1749927033084,-460.0,0.00021917,4]
[365805626,1749927033094,-400.0,0.00021917,4]
[365805627,1749927033105,-430.0,0.00021917,4]
[365805628,1749927033115,-430.0,0.00021917,4]
[365805629,1749927033125,-400.0,0.00021917,4]
[365805630,1749927033136,-400.0,0.00021917,4]
[365805631,1749927033310,-1329.1,0.00021917,4]
[365805632,1749927033321,-460.0,0.00021917,4]
[365805633,1749927033331,-400.0,0.00021917,4]
[365805634,1749927033340,-430.0,0.00021917,4]
[365805635,1749927033351,-460.0,0.00021917,4]
[365805636,1749927033360,-430.0,0.00021917,4]
[365805637,1749927033370,-460.0,0.00021917,4]
[365805638,1749927033380,-410.0,0.00021917,4]
[365805639,1749927033389,-430.0,0.00021917,4]
[365805640,1749927033401,-430.0,0.00021917,4]
[365805641,1749927033410,-430.0,0.00021917,4]
[365805642,1749927033420,-430.0,0.00021917,4]
[365805643,1749927033430,-460.0,0.00021917,4]
[365805644,1749927033440,-430.0,0.00021917,4]
[365805645,1749927033450,-500.0,0.00021917,4]
[365805646,1749927033460,-460.0,0.00021917,4]
[365805647,1749927033470,-460.0,0.00021917,4]
[365805648,1749927033480,-460.0,0.00021917,4]
[365805649,1749927033489,-460.0,0.00021917,4]
[365805650,1749927033499,-460.0,0.00021917,4]
[365805651,1749927033509,-460.0,0.00021917,4]
[365805652,1749927033518,-460.0,0.00021917,4]
[365805653,1749927033528,-393.11910756,0.00021917,4]
[365805654,1749927033538,-460.0,0.00021917,4]
[365805655,1749927033549,-460.0,0.00021917,4]
[365805656,1749927033559,-430.0,0.00021917,4]
[365805657,1749927033569,-430.0,0.00021917,4]
[365805658,1749927033582,-460.0,0.00021917,4]
[365805659,1749927033592,-460.0,0.00021917,4]
[365805660,1749927033602,-400.0,0.00021917,4]
[365805661,1749927033612,-460.0,0.00021917,4]
[365805662,1749927033622,-430.0,0.00021917,4]
[365805663,1749927033632,-460.0,0.00021917,4]
[365805664,1749927033643,-400.0,0.00021917,4]
[365805665,1749927033654,-460.0,0.00021917,4]
[365805666,1749927033664,-304.90065667,0.00021917,4]
[365805667,1749927033674,-411.35613136,0.00021917,4]
[365805668,1749927033684,-430.0,0.00021917,4]
[365805669,1749927033693,-430.0,0.00021917,4]
[365805670,1749927033703,-460.0,0.00021917,4]
[365805671,1749927033712,-400.0,0.00021917,4]
[365805672,1749927033722,-460.0,0.00021917,4]
[365805673,1749927033731,-460.0,0.00021917,4]
[365805674,1749927033740,-460.0,0.00021917,4]
[365805675,1749927033750,-430.0,0.00021917,4]
[365805676,1749927033760,-430.0,0.00021917,4]
[365805677,1749927033770,-460.0,0.00021917,4]
[365805678,1749927033779,-370.0,0.00021917,4]
[365805679,1749927033789,-1914.06654771,0.00021917,4]
[365805680,1749927033798,-460.0,0.00021917,4]
[365805681,1749927033807,-460.0,0.00021917,4]
[365805682,1749927033817,-430.0,0.00021917,4]
[365805683,1749927033826,-460.0,0.00021917,4]
[365805684,1749927033836,-460.0,0.00021917,4]
[365805685,1749927033846,-460.0,0.00021917,4]
[365805686,1749927033856,-407.96637653,0.00021917,4]
[365805687,1749927033866,-430.0,0.00021917,4]
[365805688,1749927033875,-430.0,0.00021917,4]
[365805689,1749927033885,-460.0,0.00021917,4]
[365805690,1749927033895,-460.0,0.00021917,4]
[365805691,1749927033905,-430.0,0.00021917,4]
[365805692,1749927033914,-236.77751019,0.00021917,4]
[365805693,1749927033924,-460.0,0.00021917,4]
[365805694,1749927033934,-403.59174653,0.00021917,4]
[365805695,1749927033944,-376.30547701,0.00021917,4]
[365805696,1749927033953,-460.0,0.00021917,4]
[365805697,1749927033963,-460.0,0.00021917,2]
[365805698,1749927033973,-381.76600262,0.00021917,4]
[365805699,1749927033982,-460.0,0.00021917,4]
[365805700,1749927033991,-340.0,0.00021917,4]
[365805701,1749927034000,-460.0,0.00021917,4]
[365805702,1749927034009,-502.30333355,0.00021917,4]
[365805703,1749927034019,-460.0,0.00021917,4]
[365805704,1749927034028,-410.0,0.00021917,4]
[365805705,1749927034038,-460.0,0.00021917,4]
[365805706,1749927034046,-410.0,0.00021917,4]
[365805707,1749927034056,-430.0,0.00021917,4]
[365805708,1749927034065,-460.0,0.00021917,4]
[365805709,1749927034074,-340.87968809,0.00021917,4]
[365805710,1749927034084,-430.0,0.00021917,4]
[365805711,1749927034093,-460.0,0.00021917,4]
[365805712,1749927034103,-213.92269372,0.00021917,4]
[365805713,1749927034112,-460.0,0.00021917,4]
[365805714,1749927034121,-460.0,0.00021917,4]
[365805715,1749927034130,-430.0,0.00021917,4]
[365805716,1749927034140,-419.13497932,0.00021917,4]
[365805717,1749927034151,-432.40168516,0.00021917,4]
[365805718,1749927034160,-460.0,0.00021917,4]
[365805719,1749927034171,-460.0,0.00021917,4]
[365805720,1749927034181,-460.0,0.00021917,4]
[365805721,1749927034190,-205.00614391,0.00021917,4]
[365805722,1749927034200,-1028.01,0.00021917,4]
[365805723,1749927034210,-460.0,0.00021917,4]
[365805724,1749927034220,-460.0,0.00021917,4]
[365805725,1749927034230,-460.0,0.00021917,4]
[365805726,1749927034239,-460.0,0.00021917,4]
[365805727,1749927034249,-460.0,0.00021917,4]
[365805728,1749927034259,-540.0,0.00021917,4]
[365805729,1749927034268,-370.0,0.00021917,4]
[365805730,1749927034278,-460.0,0.00021917,4]
[365805731,1749927034288,-205.06,0.00021917,4]
[365805732,1749927034297,-460.0,0.00021917,4]
[365805733,1749927034307,-329.20385302,0.00021917,4]
[365805734,1749927034316,-500.0,0.00021917,4]
[365805735,1749927034325,-430.0,0.00021917,4]
[365805736,1749927034335,-460.0,0.00021917,4]
[365805737,1749927034344,-460.0,0.00021917,4]
[365805738,1749927034353,-137.61719449,0.00021917,4]
[365805739,1749927034371,-322.38280551,0.00021917,4]
[365805740,1749927034380,-460.0,0.00021917,4]
[365805741,1749927034390,-460.0,0.00021917,4]
[365805742,1749927034400,-460.0,0.00021917,4]
[365805743,1749927034409,-424.87451413,0.00021917,4]
[365805744,1749927034421,-5.12548587,0.00021917,4]
[365805745,1749927034430,-954.93034567,0.00021917,4]
[365805746,1749927034442,-606.84252089,0.00021917,4]
[365805747,1749927034453,-389.02713344,0.00021917,4]
[365805748,1749927034463,-23.30509843,0.00021917,4]
[365805749,1749927034482,-436.69490157,0.00021917,4]
[365805750,1749927034491,-722.24,0.00021917,4]
[365805751,1749927034501,-460.0,0.00021917,4]
[365805752,1749927034510,-1347.77,0.00021917,4]
[365805753,1749927034520,-160.0,0.00021917,4]
[365805754,1749927034529,-460.0,0.00021917,4]
[365805755,1749927034538,-460.0,0.00021917,4]
[365805756,1749927034547,-409.07554666,0.00021917,4]
[365805771,1749927037636,-26.51071085,0.00021907,10]
[365805773,1749927037704,-175.05928915,0.00021907,10]
[365805774,1749927037714,-658.58445334,0.00021917,4]
[365805775,1749927037724,-460.0,0.00021917,4]
[365805776,1749927037733,-430.0,0.00021917,4]
[365805777,1749927037743,-407.18006281,0.00021917,4]
[365805778,1749927037753,-460.0,0.00021917,4]
[365805779,1749927037763,-430.0,0.00021917,4]
[365805780,1749927037772,-460.0,0.00021917,4]
[365805781,1749927037782,-460.0,0.00021917,4]
[365805782,1749927037791,-460.0,0.00021917,4]
[365805783,1749927037801,-460.0,0.00021917,4]
[365805784,1749927037811,-460.0,0.00021917,4]
[365805785,1749927037821,-401.29853876,0.00021917,4]
[365805786,1749927037831,-604.45383308,0.00021917,4]
[365805787,1749927037840,-460.0,0.00021917,4]
[365805788,1749927037849,-400.0,0.00021917,4]
[365805789,1749927037859,-430.0,0.00021917,4]
[365805790,1749927037869,-460.0,0.00021917,4]
[365805791,1749927037878,-460.0,0.00021917,4]
[365805792,1749927037888,-430.0,0.00021917,4]
[365805793,1749927037898,-408.01880777,0.00021917,4]
[365805794,1749927037908,-334.96244374,0.00021917,4]
[365805795,1749927037917,-420.0,0.00021917,4]
[365805796,1749927037927,-460.0,0.00021917,4]
[365805797,1749927037936,-460.0,0.00021917,4]
[365805798,1749927037946,-430.0,0.00021917,4]
[365805799,1749927037955,-2878.53,0.00021917,4]
[365805800,1749927037965,-460.0,0.00021917,4]
[365805801,1749927037974,-460.0,0.00021917,4]
[365805802,1749927037983,-460.0,0.00021917,4]
[365805803,1749927037993,-460.0,0.00021917,4]
[365805804,1749927038002,-932.72,0.00021917,4]
[365805805,1749927038011,-460.0,0.00021917,4]
[365805806,1749927038021,-328.02068412,0.00021917,4]
[365805807,1749927038030,-460.0,0.00021917,4]
[365805808,1749927038039,-614.76,0.00021917,4]
[365805809,1749927038049,-545.54,0.00021917,4]
[365805810,1749927038058,-496.51,0.00021917,4]
[365805811,1749927038068,-460.0,0.00021917,4]
[365805812,1749927038078,-380.0,0.00021917,4]
[365805813,1749927038088,-460.0,0.00021917,4]
[365805814,1749927038097,-460.0,0.00021917,4]
[365805815,1749927038107,-460.0,0.00021917,4]
[365805816,1749927038117,-460.0,0.00021917,4]
[365805817,1749927038127,-460.0,0.00021917,4]
[365805818,1749927038136,-460.0,0.00021917,4]
[365805819,1749927038146,-430.0,0.00021917,4]
[365805820,1749927038155,-1408.85,0.00021917,4]
[365805821,1749927038165,-460.0,0.00021917,4]
[365805822,1749927038175,-430.0,0.00021917,4]
[365805823,1749927038185,-460.0,0.00021917,4]
[365805824,1749927038194,-460.0,0.00021917,4]
[365805825,1749927038203,-2631.22,0.00021917,4]
[365805826,1749927038213,-460.0,0.00021917,4]
[365805827,1749927038222,-460.0,0.00021917,4]
[365805828,1749927038231,-460.0,0.00021917,4]
[365805829,1749927038240,-466.96312873,0.00021917,4]
[365805830,1749927038250,-460.0,0.00021917,4]
[365805831,1749927038259,-594.71,0.00021917,4]
[365805832,1749927038268,-594.38271689,0.00021917,4]
[365805833,1749927038278,-460.0,0.00021917,4]
[365805834,1749927038287,-460.0,0.00021917,4]
[365805835,1749927038297,-2582.1,0.00021917,4]
[365805836,1749927038337,-3309.38,0.00021917,4]
[365805837,1749927038347,-378.82708514,0.00021917,4]
[365805838,1749927038356,-460.0,0.00021917,4]
[365805839,1749927038366,-460.0,0.00021917,4]
[365805840,1749927038375,-340.0,0.00021917,4]
[365805841,1749927038385,-510.0,0.00021917,4]
[365805842,1749927038394,-534.03,0.00021917,4]
[365805843,1749927038405,-460.0,0.00021917,4]
[365805844,1749927038414,-460.0,0.00021917,4]
[365805845,1749927038423,-677.37,0.00021917,2]
[365805846,1749927038432,-460.0,0.00021917,4]
[365805847,1749927038442,-460.0,0.00021917,4]
[365805848,1749927038451,-460.0,0.00021917,4]
[365805849,1749927038462,-460.0,0.00021917,4]
[365805850,1749927038473,-460.0,0.00021917,4]
[365805851,1749927038483,-1462.06,0.00021917,4]
[365805852,1749927038493,-370.0,0.00021917,4]
[365805853,1749927038502,-460.0,0.00021917,4]
[365805854,1749927038512,-460.0,0.00021917,4]
[365805855,1749927038521,-460.0,0.00021917,4]
[365805856,1749927038530,-460.0,0.00021917,4]
[365805857,1749927038539,-460.0,0.00021917,4]
[365805858,1749927038548,-411.37093086,0.00021917,4]
[365805859,1749927038558,-460.0,0.00021917,4]
[365805860,1749927038568,-2796.73,0.00021917,4]
[365805861,1749927038579,-430.0,0.00021917,4]
[365805862,1749927038589,-460.0,0.00021917,4]
[365805863,1749927038598,-460.0,0.00021917,4]
[365805864,1749927038607,-460.0,0.00021917,4]
[365805865,1749927038617,-460.0,0.00021917,4]